[Event "Titled Tuesday Blitz December 13 Early 2022"]
[White "Fabris, Alberto"]
[Black "Guliev, Logman"]
[WhiteFideId "801348"]
[BlackFideId "13400061"]
[WhiteElo "2175"]
[BlackElo "2161"]
[Result "0-1"]
[Round "04"]
[TimeControl "180+1"]
[Date "2022.12.14"]
[WhiteClock "0:00:14"]
[BlackClock "0:00:43"]

1. e4 {[%clk 0:03:00]}  e5 {[%clk 0:02:58]} 2. Nf3 {[%clk 0:03:00]}  Nc6 {[%clk 0:02:56]} 3. Bb5 {[%clk 0:03:00]}  a6 {[%clk 0:02:56]} 4. Ba4 {[%clk 0:03:00]}  Nf6 {[%clk 0:02:56]} 5. O-O {[%clk 0:03:00]}  Be7 {[%clk 0:02:57]} 6. Re1 {[%clk 0:02:59]}  b5 {[%clk 0:02:57]} 7. Bb3 {[%clk 0:02:59]}  O-O {[%clk 0:02:58]} 8. h3 {[%clk 0:02:58]}  Bb7 {[%clk 0:02:53]} 9. d4 {[%clk 0:02:49]}  Nxd4 {[%clk 0:02:48]} 10. Nxd4 {[%clk 0:02:41]}  exd4 {[%clk 0:02:47]} 11. a4 {[%clk 0:02:39]}  c5 {[%clk 0:02:44]} 12. e5 {[%clk 0:02:36]}  Nd5 {[%clk 0:02:29]} 13. c4 {[%clk 0:02:29]}  Nb4 {[%clk 0:02:18]} 14. axb5 {[%clk 0:02:22]}  axb5 {[%clk 0:02:17]} 15. Na3 {[%clk 0:02:18]}  bxc4 {[%clk 0:02:06]} 16. Bxc4 {[%clk 0:02:17]}  d5 {[%clk 0:02:06]} 17. Bf1 {[%clk 0:02:14]}  Qb6 {[%clk 0:01:41]} 18. Qg4 {[%clk 0:02:04]}  Ba6 {[%clk 0:01:37]} 19. Bf4 {[%clk 0:01:44]}  Bxf1 {[%clk 0:01:29]} 20. Rxf1 {[%clk 0:01:45]}  d3 {[%clk 0:01:18]} 21. Bd2 {[%clk 0:01:42]}  c4 {[%clk 0:01:16]} 22. Kh1 {[%clk 0:01:30]}  Qg6 {[%clk 0:01:12]} 23. Qd7 {[%clk 0:01:26]}  Qe6 {[%clk 0:01:09]} 24. Qxe6 {[%clk 0:01:02]}  fxe6 {[%clk 0:01:09]} 25. f4 {[%clk 0:01:01]}  Bc5 {[%clk 0:01:00]} 26. Bc3 {[%clk 0:00:54]}  Nc2 {[%clk 0:00:47]} 27. Nxc2 {[%clk 0:00:53]}  dxc2 {[%clk 0:00:47]} 28. g3 {[%clk 0:00:33]}  d4 {[%clk 0:00:46]} 29. Bd2 {[%clk 0:00:33]}  d3 {[%clk 0:00:46]} 30. Bc3 {[%clk 0:00:16]}  Rxa1 {[%clk 0:00:42]} 31. Rxa1 {[%clk 0:00:14]}  Be3 {[%clk 0:00:43]} 0-1


[Site "https://www.chess.com"]

[Event "Titled Tuesday Blitz December 13 Early 2022"]
[White "Fedoseev, Vladimir"]
[Black "Mihajlov, Sebastian"]
[WhiteFideId "24130737"]
[BlackFideId "1512110"]
[WhiteElo "2733"]
[BlackElo "2464"]
[Result "1-0"]
[Round "04"]
[TimeControl "180+1"]
[Date "2022.12.13"]
[WhiteClock "0:00:23"]
[BlackClock "0:00:12"]

1. d4 {[%clk 0:01:53]}  Nf6 {[%clk 0:02:59]} 2. Nf3 {[%clk 0:01:53]}  g6 {[%clk 0:02:59]} 3. e3 {[%clk 0:01:54]}  Bg7 {[%clk 0:03:00]} 4. Be2 {[%clk 0:01:54]}  O-O {[%clk 0:03:00]} 5. O-O {[%clk 0:01:55]}  d6 {[%clk 0:03:01]} 6. b4 {[%clk 0:01:55]}  c6 {[%clk 0:02:57]} 7. Bb2 {[%clk 0:01:54]}  a5 {[%clk 0:02:56]} 8. b5 {[%clk 0:01:54]}  a4 {[%clk 0:02:49]} 9. Na3 {[%clk 0:01:54]}  Ne4 {[%clk 0:02:43]} 10. c4 {[%clk 0:01:54]}  Qa5 {[%clk 0:02:43]} 11. Qc2 {[%clk 0:01:53]}  d5 {[%clk 0:02:35]} 12. Bd3 {[%clk 0:01:39]}  Bf5 {[%clk 0:02:00]} 13. Rfc1 {[%clk 0:01:32]}  Nd7 {[%clk 0:01:52]} 14. Nh4 {[%clk 0:01:32]}  e6 {[%clk 0:01:24]} 15. Nxf5 {[%clk 0:00:53]}  gxf5 {[%clk 0:01:25]} 16. Rab1 {[%clk 0:00:53]}  Rfc8 {[%clk 0:00:51]} 17. bxc6 {[%clk 0:00:52]}  bxc6 {[%clk 0:00:43]} 18. cxd5 {[%clk 0:00:52]}  cxd5 {[%clk 0:00:36]} 19. Qxc8+ {[%clk 0:00:51]}  Rxc8 {[%clk 0:00:37]} 20. Rxc8+ {[%clk 0:00:51]}  Nf8 {[%clk 0:00:38]} 21. Bxe4 {[%clk 0:00:48]}  fxe4 {[%clk 0:00:32]} 22. Bc3 {[%clk 0:00:46]}  Qa6 {[%clk 0:00:32]} 23. Rbb8 {[%clk 0:00:41]}  Qe2 {[%clk 0:00:25]} 24. h3 {[%clk 0:00:42]}  h5 {[%clk 0:00:20]} 25. Bb4 {[%clk 0:00:38]}  Kh7 {[%clk 0:00:20]} 26. Bxf8 {[%clk 0:00:32]}  Qe1+ {[%clk 0:00:21]} 27. Kh2 {[%clk 0:00:31]}  Qxf2 {[%clk 0:00:22]} 28. Bxg7 {[%clk 0:00:31]}  Kxg7 {[%clk 0:00:22]} 29. Rg8+ {[%clk 0:00:32]}  Kf6 {[%clk 0:00:23]} 30. Rg3 {[%clk 0:00:24]}  h4 {[%clk 0:00:21]} 31. Rg4 {[%clk 0:00:25]}  Qxe3 {[%clk 0:00:21]} 32. Nb5 {[%clk 0:00:24]}  Qe2 {[%clk 0:00:21]} 33. Rb7 {[%clk 0:00:23]}  e3 {[%clk 0:00:11]} 34. Nd6 {[%clk 0:00:22]}  e5 {[%clk 0:00:12]} 35. Rxf7+ {[%clk 0:00:22]}  Ke6 {[%clk 0:00:12]} 36. Rg6# {[%clk 0:00:23]} 1-0


[Site "https://www.chess.com"]

[Event "Titled Tuesday Blitz December 13 Early 2022"]
[White "Fernandez Garcia, Gumersindo"]
[Black "Sovetbekova, Nurai"]
[WhiteFideId "24516740"]
[BlackFideId "13801910"]
[WhiteElo "2140"]
[BlackElo "1925"]
[Result "0-1"]
[Round "04"]
[TimeControl "180+1"]
[Date "2022.12.14"]
[WhiteClock "0:00:27"]
[BlackClock "0:00:10"]

1. e4 {[%clk 0:03:00]}  c5 {[%clk 0:02:56]} 2. c3 {[%clk 0:03:00]}  Nf6 {[%clk 0:02:55]} 3. e5 {[%clk 0:03:00]}  Nd5 {[%clk 0:02:55]} 4. d4 {[%clk 0:03:00]}  d6 {[%clk 0:02:53]} 5. exd6 {[%clk 0:02:48]}  Qxd6 {[%clk 0:02:51]} 6. dxc5 {[%clk 0:02:44]}  Qxc5 {[%clk 0:02:47]} 7. Be2 {[%clk 0:02:44]}  Nc6 {[%clk 0:02:40]} 8. Nf3 {[%clk 0:02:36]}  Bg4 {[%clk 0:02:37]} 9. O-O {[%clk 0:02:30]}  e6 {[%clk 0:02:35]} 10. h3 {[%clk 0:02:28]}  Bh5 {[%clk 0:02:34]} 11. Qb3 {[%clk 0:02:20]}  Qb6 {[%clk 0:02:28]} 12. c4 {[%clk 0:02:15]}  Qxb3 {[%clk 0:02:20]} 13. axb3 {[%clk 0:02:12]}  Ndb4 {[%clk 0:02:20]} 14. Nc3 {[%clk 0:02:09]}  Be7 {[%clk 0:02:16]} 15. Bf4 {[%clk 0:01:59]}  O-O {[%clk 0:02:14]} 16. Rfd1 {[%clk 0:01:59]}  Rfd8 {[%clk 0:01:56]} 17. Nb5 {[%clk 0:01:57]}  a6 {[%clk 0:01:48]} 18. Nc3 {[%clk 0:01:42]}  Bf6 {[%clk 0:01:45]} 19. Kf1 {[%clk 0:01:42]}  Bg6 {[%clk 0:01:31]} 20. Bc7 {[%clk 0:01:25]}  Rxd1+ {[%clk 0:01:08]} 21. Rxd1 {[%clk 0:01:20]}  Bc2 {[%clk 0:01:08]} 22. Rd7 {[%clk 0:01:21]}  Bxb3 {[%clk 0:01:07]} 23. Ne4 {[%clk 0:01:21]}  Bxb2 {[%clk 0:01:02]} 24. Nd6 {[%clk 0:01:20]}  Rf8 {[%clk 0:00:58]} 25. Ng5 {[%clk 0:01:15]}  Ne5 {[%clk 0:00:53]} 26. Rd8 {[%clk 0:01:03]}  Rxd8 {[%clk 0:00:50]} 27. Bxd8 {[%clk 0:01:04]}  h6 {[%clk 0:00:45]} 28. Nge4 {[%clk 0:01:02]}  Nbc6 {[%clk 0:00:37]} 29. Bb6 {[%clk 0:00:58]}  a5 {[%clk 0:00:29]} 30. Nd2 {[%clk 0:00:57]}  Bc2 {[%clk 0:00:26]} 31. Nxb7 {[%clk 0:00:56]}  a4 {[%clk 0:00:24]} 32. Nc5 {[%clk 0:00:48]}  a3 {[%clk 0:00:23]} 33. Ncb3 {[%clk 0:00:38]}  a2 {[%clk 0:00:21]} 34. f4 {[%clk 0:00:37]}  Nd7 {[%clk 0:00:17]} 35. c5 {[%clk 0:00:36]}  a1=Q+ {[%clk 0:00:15]} 36. Nxa1 {[%clk 0:00:35]}  Bxa1 {[%clk 0:00:16]} 37. Bf3 {[%clk 0:00:35]}  Ndb8 {[%clk 0:00:14]} 38. Nc4 {[%clk 0:00:32]}  Bd3+ {[%clk 0:00:13]} 39. Be2 {[%clk 0:00:33]}  Bxe2+ {[%clk 0:00:11]} 40. Kxe2 {[%clk 0:00:34]}  Bd4 {[%clk 0:00:10]} 41. Kd3 {[%clk 0:00:33]}  Nd7 {[%clk 0:00:10]} 42. Na5 {[%clk 0:00:27]}  Nxa5 {[%clk 0:00:08]} 43. Kxd4 {[%clk 0:00:25]}  Nc6+ {[%clk 0:00:08]} 44. Kc4 {[%clk 0:00:25]}  Kf8 {[%clk 0:00:07]} 45. Kb5 {[%clk 0:00:25]}  Nd4+ {[%clk 0:00:07]} 46. Kc4 {[%clk 0:00:23]}  Nc6 {[%clk 0:00:07]} 47. Kb5 {[%clk 0:00:23]}  Ndb8 {[%clk 0:00:07]} 48. Bc7 {[%clk 0:00:22]}  Ke7 {[%clk 0:00:08]} 49. Kb6 {[%clk 0:00:20]}  Kd7 {[%clk 0:00:07]} 50. Kb7 {[%clk 0:00:19]}  Na6 {[%clk 0:00:03]} 51. Bd6 {[%clk 0:00:18]}  Nab4 {[%clk 0:00:03]} 52. Kb6 {[%clk 0:00:18]}  Nd5+ {[%clk 0:00:03]} 53. Kb5 {[%clk 0:00:19]}  Ne3 {[%clk 0:00:03]} 54. g3 {[%clk 0:00:18]}  Nf5 {[%clk 0:00:03]} 55. g4 {[%clk 0:00:15]}  Nxd6+ {[%clk 0:00:03]} 56. cxd6 {[%clk 0:00:16]}  Kxd6 {[%clk 0:00:04]} 57. Kc4 {[%clk 0:00:17]}  Ne7 {[%clk 0:00:04]} 58. Kd3 {[%clk 0:00:18]}  f6 {[%clk 0:00:05]} 59. Ke4 {[%clk 0:00:19]}  Nc6 {[%clk 0:00:05]} 60. h4 {[%clk 0:00:19]}  e5 {[%clk 0:00:05]} 61. fxe5+ {[%clk 0:00:19]}  fxe5 {[%clk 0:00:06]} 62. Kf5 {[%clk 0:00:20]}  Kd5 {[%clk 0:00:06]} 63. Kg6 {[%clk 0:00:20]}  e4 {[%clk 0:00:07]} 64. Kxg7 {[%clk 0:00:21]}  Ne5 {[%clk 0:00:07]} 65. Kxh6 {[%clk 0:00:22]}  Nxg4+ {[%clk 0:00:07]} 66. Kg5 {[%clk 0:00:22]}  Ne5 {[%clk 0:00:07]} 67. h5 {[%clk 0:00:23]}  e3 {[%clk 0:00:08]} 68. Kf6 {[%clk 0:00:23]}  Ng4+ {[%clk 0:00:08]} 69. Kg5 {[%clk 0:00:24]}  Ne5 {[%clk 0:00:07]} 70. Kf5 {[%clk 0:00:24]}  e2 {[%clk 0:00:07]} 71. h6 {[%clk 0:00:24]}  e1=Q {[%clk 0:00:08]} 72. h7 {[%clk 0:00:25]}  Qb1+ {[%clk 0:00:08]} 73. Kg5 {[%clk 0:00:24]}  Qxh7 {[%clk 0:00:09]} 74. Kf4 {[%clk 0:00:25]}  Qh4+ {[%clk 0:00:08]} 75. Kf5 {[%clk 0:00:25]}  Qg4+ {[%clk 0:00:08]} 76. Kf6 {[%clk 0:00:26]}  Qg6+ {[%clk 0:00:09]} 77. Ke7 {[%clk 0:00:27]}  Qf7+ {[%clk 0:00:09]} 78. Kd8 {[%clk 0:00:27]}  Qd7# {[%clk 0:00:10]} 0-1


[Site "https://www.chess.com"]

[Event "Titled Tuesday Blitz December 13 Early 2022"]
[White "Forgacs, Attila Jr."]
[Black "Buksa, Nataliya"]
[WhiteFideId "773654"]
[BlackFideId "14123622"]
[WhiteElo "2168"]
[BlackElo "2303"]
[Result "1/2-1/2"]
[Round "04"]
[TimeControl "180+1"]
[Date "2022.12.14"]
[WhiteClock "0:00:08"]
[BlackClock "0:00:10"]

1. e4 {[%clk 0:03:00]}  c5 {[%clk 0:03:00]} 2. d3 {[%clk 0:03:01]}  Nc6 {[%clk 0:03:00]} 3. g3 {[%clk 0:03:02]}  g6 {[%clk 0:03:00]} 4. Bg2 {[%clk 0:03:02]}  Bg7 {[%clk 0:03:01]} 5. f4 {[%clk 0:03:03]}  d6 {[%clk 0:03:02]} 6. Nf3 {[%clk 0:03:03]}  e6 {[%clk 0:03:02]} 7. O-O {[%clk 0:03:04]}  Nge7 {[%clk 0:03:03]} 8. c3 {[%clk 0:03:04]}  O-O {[%clk 0:03:03]} 9. Be3 {[%clk 0:03:03]}  f5 {[%clk 0:03:03]} 10. Qe2 {[%clk 0:02:54]}  Qc7 {[%clk 0:02:59]} 11. a4 {[%clk 0:02:53]}  b6 {[%clk 0:02:59]} 12. Na3 {[%clk 0:02:52]}  Bb7 {[%clk 0:02:59]} 13. Nb5 {[%clk 0:02:50]}  Qd7 {[%clk 0:02:59]} 14. Rad1 {[%clk 0:02:43]}  a6 {[%clk 0:02:59]} 15. Na3 {[%clk 0:02:43]}  d5 {[%clk 0:02:57]} 16. e5 {[%clk 0:02:41]}  d4 {[%clk 0:02:41]} 17. Bf2 {[%clk 0:02:41]}  dxc3 {[%clk 0:02:24]} 18. bxc3 {[%clk 0:02:40]}  Qd5 {[%clk 0:02:24]} 19. Nc4 {[%clk 0:02:30]}  Qd8 {[%clk 0:02:24]} 20. Nd6 {[%clk 0:02:26]}  Rb8 {[%clk 0:02:24]} 21. Rb1 {[%clk 0:02:07]}  h6 {[%clk 0:02:22]} 22. d4 {[%clk 0:01:52]}  Nd5 {[%clk 0:02:15]} 23. Qc4 {[%clk 0:01:36]}  Na5 {[%clk 0:02:08]} 24. Qa2 {[%clk 0:01:34]}  Nxc3 {[%clk 0:02:06]} 25. Qxe6+ {[%clk 0:01:32]}  Kh7 {[%clk 0:02:04]} 26. Nh4 {[%clk 0:01:28]}  Ne2+ {[%clk 0:01:32]} 27. Kh1 {[%clk 0:01:28]}  Bxg2+ {[%clk 0:01:33]} 28. Kxg2 {[%clk 0:01:28]}  Nxd4 {[%clk 0:01:31]} 29. Qxg6+ {[%clk 0:01:25]}  Kh8 {[%clk 0:01:31]} 30. Bxd4 {[%clk 0:01:23]}  cxd4 {[%clk 0:01:30]} 31. Nhxf5 {[%clk 0:01:22]}  Qd7 {[%clk 0:01:26]} 32. Nxh6 {[%clk 0:01:14]}  Nc4 {[%clk 0:01:22]} 33. Ndf7+ {[%clk 0:01:04]}  Rxf7 {[%clk 0:01:21]} 34. Nxf7+ {[%clk 0:01:05]}  Kg8 {[%clk 0:01:21]} 35. Nh6+ {[%clk 0:00:44]}  Kh8 {[%clk 0:01:20]} 36. Nf5 {[%clk 0:00:44]}  Qxf5 {[%clk 0:01:19]} 37. Qxf5 {[%clk 0:00:41]}  Ne3+ {[%clk 0:01:19]} 38. Kf3 {[%clk 0:00:41]}  Nxf5 {[%clk 0:01:20]} 39. Ke4 {[%clk 0:00:41]}  Ne7 {[%clk 0:01:18]} 40. Kxd4 {[%clk 0:00:40]}  b5 {[%clk 0:01:13]} 41. axb5 {[%clk 0:00:39]}  axb5 {[%clk 0:01:14]} 42. Ke4 {[%clk 0:00:37]}  Nc6 {[%clk 0:01:01]} 43. Rfc1 {[%clk 0:00:33]}  Rb6 {[%clk 0:01:02]} 44. Rc5 {[%clk 0:00:27]}  b4 {[%clk 0:01:02]} 45. Rbc1 {[%clk 0:00:25]}  Ne7 {[%clk 0:00:57]} 46. f5 {[%clk 0:00:24]}  Bh6 {[%clk 0:00:52]} 47. Rb1 {[%clk 0:00:22]}  b3 {[%clk 0:00:52]} 48. f6 {[%clk 0:00:20]}  Rb4+ {[%clk 0:00:52]} 49. Kf3 {[%clk 0:00:19]}  Nf5 {[%clk 0:00:51]} 50. Rc8+ {[%clk 0:00:17]}  Kh7 {[%clk 0:00:51]} 51. g4 {[%clk 0:00:16]}  Nd4+ {[%clk 0:00:48]} 52. Ke4 {[%clk 0:00:15]}  Ne6+ {[%clk 0:00:44]} 53. Kd5 {[%clk 0:00:14]}  Nf4+ {[%clk 0:00:43]} 54. Kd6 {[%clk 0:00:14]}  Rd4+ {[%clk 0:00:38]} 55. Kc5 {[%clk 0:00:11]}  Ne6+ {[%clk 0:00:37]} 56. Kb6 {[%clk 0:00:10]}  Be3 {[%clk 0:00:27]} 57. Kb7 {[%clk 0:00:10]}  Rb4+ {[%clk 0:00:26]} 58. Ka6 {[%clk 0:00:08]}  b2 {[%clk 0:00:17]} 59. h4 {[%clk 0:00:05]}  Nc5+ {[%clk 0:00:13]} 60. Rxc5 {[%clk 0:00:05]}  Bxc5 {[%clk 0:00:12]} 61. e6 {[%clk 0:00:05]}  Rb6+ {[%clk 0:00:12]} 62. Ka5 {[%clk 0:00:05]}  Rxe6 {[%clk 0:00:08]} 63. Rxb2 {[%clk 0:00:05]}  Rxf6 {[%clk 0:00:08]} 64. Rb7+ {[%clk 0:00:04]}  Kg6 {[%clk 0:00:08]} 65. h5+ {[%clk 0:00:04]}  Kh6 {[%clk 0:00:08]} 66. Rc7 {[%clk 0:00:03]}  Be3 {[%clk 0:00:09]} 67. Kb5 {[%clk 0:00:04]}  Bg5 {[%clk 0:00:07]} 68. Rc6 {[%clk 0:00:04]}  Bh4 {[%clk 0:00:06]} 69. Rxf6+ {[%clk 0:00:04]}  Bxf6 {[%clk 0:00:07]} 70. Kc6 {[%clk 0:00:05]}  Kg5 {[%clk 0:00:08]} 71. Kd5 {[%clk 0:00:05]}  Kxg4 {[%clk 0:00:08]} 72. h6 {[%clk 0:00:06]}  Kg5 {[%clk 0:00:09]} 73. h7 {[%clk 0:00:07]}  Kg6 {[%clk 0:00:09]} 74. h8=Q {[%clk 0:00:08]}  Bxh8 {[%clk 0:00:10]} 1/2-1/2


[Site "https://www.chess.com"]

[Event "Titled Tuesday Blitz December 13 Early 2022"]
[White "Fromm, Marius"]
[Black "Zhigalko, Sergei"]
[WhiteFideId "12993190"]
[BlackFideId "13502956"]
[WhiteElo "2593"]
[BlackElo "2861"]
[Result "0-1"]
[Round "04"]
[TimeControl "180+1"]
[Date "2022.12.14"]
[WhiteClock "0:00:08"]
[BlackClock "0:00:05"]

1. e4 {[%clk 0:03:00]}  c5 {[%clk 0:02:59]} 2. Nf3 {[%clk 0:03:01]}  Nc6 {[%clk 0:02:59]} 3. Bb5 {[%clk 0:03:00]}  Nf6 {[%clk 0:02:59]} 4. Nc3 {[%clk 0:02:56]}  Qc7 {[%clk 0:02:59]} 5. O-O {[%clk 0:02:57]}  Nd4 {[%clk 0:02:59]} 6. Re1 {[%clk 0:02:56]}  a6 {[%clk 0:02:56]} 7. Bf1 {[%clk 0:02:55]}  Ng4 {[%clk 0:02:55]} 8. e5 {[%clk 0:02:55]}  h5 {[%clk 0:02:55]} 9. Nd5 {[%clk 0:02:48]}  Qc6 {[%clk 0:02:55]} 10. Nxd4 {[%clk 0:02:43]}  cxd4 {[%clk 0:02:50]} 11. Nf4 {[%clk 0:02:27]}  d6 {[%clk 0:02:41]} 12. e6 {[%clk 0:02:20]}  g5 {[%clk 0:02:41]} 13. exf7+ {[%clk 0:02:15]}  Kxf7 {[%clk 0:02:41]} 14. Nxh5 {[%clk 0:02:11]}  Rxh5 {[%clk 0:02:37]} 15. Be2 {[%clk 0:02:00]}  Rh4 {[%clk 0:02:01]} 16. g3 {[%clk 0:01:40]}  Nxf2 {[%clk 0:01:05]} 17. Bf3 {[%clk 0:00:50]}  Nxd1 {[%clk 0:00:38]} 18. Bxc6 {[%clk 0:00:50]}  bxc6 {[%clk 0:00:35]} 19. gxh4 {[%clk 0:00:50]}  Bg4 {[%clk 0:00:35]} 20. hxg5 {[%clk 0:00:42]}  e5 {[%clk 0:00:29]} 21. b3 {[%clk 0:00:34]}  Be7 {[%clk 0:00:18]} 22. Ba3 {[%clk 0:00:32]}  Ke6 {[%clk 0:00:14]} 23. Raxd1 {[%clk 0:00:28]}  Bxd1 {[%clk 0:00:15]} 24. Rxd1 {[%clk 0:00:28]}  Bxg5 {[%clk 0:00:16]} 25. d3 {[%clk 0:00:25]}  Bf4 {[%clk 0:00:09]} 26. Bc1 {[%clk 0:00:23]}  Rg8+ {[%clk 0:00:08]} 27. Kh1 {[%clk 0:00:21]}  Kf5 {[%clk 0:00:06]} 28. Bd2 {[%clk 0:00:11]}  c5 {[%clk 0:00:02]} 29. Rf1 {[%clk 0:00:11]}  Rg4 {[%clk 0:00:02]} 30. h3 {[%clk 0:00:11]}  Rg3 {[%clk 0:00:02]} 31. Bxf4 {[%clk 0:00:07]}  exf4 {[%clk 0:00:03]} 32. Kh2 {[%clk 0:00:07]}  Rg8 {[%clk 0:00:03]} 33. Re1 {[%clk 0:00:07]}  f3 {[%clk 0:00:02]} 34. Re7 {[%clk 0:00:06]}  Kf4 {[%clk 0:00:02]} 35. Rf7+ {[%clk 0:00:04]}  Ke3 {[%clk 0:00:03]} 36. h4 {[%clk 0:00:05]}  f2 {[%clk 0:00:02]} 37. h5 {[%clk 0:00:05]}  Ke2 {[%clk 0:00:02]} 38. h6 {[%clk 0:00:06]}  f1=Q {[%clk 0:00:02]} 39. Rxf1 {[%clk 0:00:06]}  Kxf1 {[%clk 0:00:03]} 40. h7 {[%clk 0:00:06]}  Rh8 {[%clk 0:00:03]} 41. Kg3 {[%clk 0:00:07]}  Rxh7 {[%clk 0:00:04]} 42. Kf4 {[%clk 0:00:08]}  Re7 {[%clk 0:00:05]} 43. Kf3 {[%clk 0:00:08]}  Ke1 {[%clk 0:00:05]} 0-1


[Site "https://www.chess.com"]

[Event "Titled Tuesday Blitz December 13 Early 2022"]
[White "Galchenko, Matvey"]
[Black "Goroshkov, Maksym"]
[WhiteFideId "24175480"]
[BlackFideId "14142716"]
[WhiteElo "2861"]
[BlackElo "2596"]
[Result "1-0"]
[Round "04"]
[TimeControl "180+1"]
[Date "2022.12.14"]
[WhiteClock "0:00:12"]
[BlackClock "0:00:02"]

1. f4 {[%clk 0:03:00]}  e5 {[%clk 0:03:00]} 2. fxe5 {[%clk 0:03:01]}  d6 {[%clk 0:03:00]} 3. Nf3 {[%clk 0:03:02]}  dxe5 {[%clk 0:03:00]} 4. e4 {[%clk 0:03:03]}  Nf6 {[%clk 0:02:58]} 5. Bc4 {[%clk 0:03:03]}  Nxe4 {[%clk 0:02:57]} 6. Qe2 {[%clk 0:03:03]}  Nd6 {[%clk 0:02:55]} 7. Bb3 {[%clk 0:03:03]}  Nc6 {[%clk 0:02:50]} 8. O-O {[%clk 0:03:03]}  f6 {[%clk 0:02:49]} 9. d4 {[%clk 0:03:03]}  Bg4 {[%clk 0:02:45]} 10. dxe5 {[%clk 0:02:58]}  Nxe5 {[%clk 0:02:42]} 11. Bf4 {[%clk 0:02:46]}  Bxf3 {[%clk 0:02:41]} 12. Rxf3 {[%clk 0:02:45]}  Qe7 {[%clk 0:02:32]} 13. Bxe5 {[%clk 0:02:36]}  fxe5 {[%clk 0:02:32]} 14. Re3 {[%clk 0:02:35]}  e4 {[%clk 0:02:30]} 15. Nc3 {[%clk 0:02:35]}  O-O-O {[%clk 0:02:29]} 16. Rd1 {[%clk 0:02:11]}  g6 {[%clk 0:02:13]} 17. Nxe4 {[%clk 0:02:08]}  Nxe4 {[%clk 0:02:13]} 18. Rxd8+ {[%clk 0:02:09]}  Qxd8 {[%clk 0:02:13]} 19. Rxe4 {[%clk 0:02:09]}  Bc5+ {[%clk 0:02:14]} 20. Kh1 {[%clk 0:02:09]}  Rf8 {[%clk 0:02:13]} 21. Be6+ {[%clk 0:01:49]}  Kb8 {[%clk 0:02:12]} 22. Bc4 {[%clk 0:01:48]}  a6 {[%clk 0:02:07]} 23. h3 {[%clk 0:01:46]}  Ka7 {[%clk 0:02:01]} 24. Bd3 {[%clk 0:01:44]}  Rf2 {[%clk 0:02:00]} 25. Qe1 {[%clk 0:01:44]}  Qf6 {[%clk 0:01:55]} 26. b4 {[%clk 0:01:39]}  Bd6 {[%clk 0:01:43]} 27. Kg1 {[%clk 0:01:34]}  Rf4 {[%clk 0:01:32]} 28. a3 {[%clk 0:01:14]}  Rxe4 {[%clk 0:01:27]} 29. Bxe4 {[%clk 0:01:15]}  Qe5 {[%clk 0:01:19]} 30. Qe3+ {[%clk 0:01:12]}  Kb8 {[%clk 0:01:10]} 31. Qd3 {[%clk 0:01:11]}  Qh2+ {[%clk 0:01:06]} 32. Kf1 {[%clk 0:01:10]}  Qf4+ {[%clk 0:01:06]} 33. Ke2 {[%clk 0:01:08]}  Qe5 {[%clk 0:00:55]} 34. c3 {[%clk 0:01:07]}  g5 {[%clk 0:00:50]} 35. Qc4 {[%clk 0:01:03]}  h5 {[%clk 0:00:46]} 36. Kd3 {[%clk 0:01:03]}  g4 {[%clk 0:00:42]} 37. hxg4 {[%clk 0:01:02]}  hxg4 {[%clk 0:00:42]} 38. Qg8+ {[%clk 0:01:02]}  Ka7 {[%clk 0:00:42]} 39. Qxg4 {[%clk 0:01:03]}  Qb5+ {[%clk 0:00:39]} 40. Kc2 {[%clk 0:01:02]}  Qc4 {[%clk 0:00:36]} 41. Bf3 {[%clk 0:00:34]}  Qa2+ {[%clk 0:00:35]} 42. Kd3 {[%clk 0:00:34]}  Qb1+ {[%clk 0:00:33]} 43. Kd4 {[%clk 0:00:33]}  Qc1 {[%clk 0:00:21]} 44. Qe4 {[%clk 0:00:33]}  c6 {[%clk 0:00:20]} 45. Qe3 {[%clk 0:00:29]}  Qxa3 {[%clk 0:00:19]} 46. Kd3+ {[%clk 0:00:25]}  Kb8 {[%clk 0:00:18]} 47. Qe8+ {[%clk 0:00:21]}  Ka7 {[%clk 0:00:18]} 48. Qe3+ {[%clk 0:00:21]}  Kb8 {[%clk 0:00:18]} 49. Qd4 {[%clk 0:00:22]}  Bc7 {[%clk 0:00:15]} 50. Qh8+ {[%clk 0:00:22]}  Ka7 {[%clk 0:00:15]} 51. Qg7 {[%clk 0:00:23]}  Kb8 {[%clk 0:00:15]} 52. Qf8+ {[%clk 0:00:23]}  Ka7 {[%clk 0:00:15]} 53. Qe7 {[%clk 0:00:22]}  Kb8 {[%clk 0:00:15]} 54. Qe8+ {[%clk 0:00:22]}  Ka7 {[%clk 0:00:16]} 55. Qd7 {[%clk 0:00:23]}  Kb8 {[%clk 0:00:16]} 56. Bg4 {[%clk 0:00:23]}  Bg3 {[%clk 0:00:12]} 57. Qd8+ {[%clk 0:00:21]}  Ka7 {[%clk 0:00:12]} 58. Qd4+ {[%clk 0:00:21]}  Kb8 {[%clk 0:00:12]} 59. Qe3 {[%clk 0:00:18]}  Bc7 {[%clk 0:00:09]} 60. Qe8+ {[%clk 0:00:19]}  Ka7 {[%clk 0:00:10]} 61. Qd7 {[%clk 0:00:20]}  Be5 {[%clk 0:00:09]} 62. Bf3 {[%clk 0:00:15]}  Qxc3+ {[%clk 0:00:09]} 63. Ke4 {[%clk 0:00:16]}  Bg3 {[%clk 0:00:06]} 64. Kf5 {[%clk 0:00:15]}  Qxb4 {[%clk 0:00:05]} 65. Bxc6 {[%clk 0:00:13]}  Qc5+ {[%clk 0:00:05]} 66. Bd5 {[%clk 0:00:14]}  Bc7 {[%clk 0:00:04]} 67. g4 {[%clk 0:00:13]}  a5 {[%clk 0:00:05]} 68. g5 {[%clk 0:00:13]}  Qd6 {[%clk 0:00:02]} 69. Qb5 {[%clk 0:00:12]} 1-0


[Site "https://www.chess.com"]